Cogmind - Beta 15 @@@ ROGUE MODE // 2025.09.09 @ 20:26:38 Player: beans Result: Destroyed by MC-0HU(R) with Subdweller Machine Gun Performance ------------- Evolutions (0) 0 Regions Visited (3) 600 Robots Destroyed (17) 85 Value Destroyed (334) 334 Prototype IDs (1) 20 Alien Tech Used (0) 0 Bonus (7) 7 TOTAL SCORE: 1046 Bonus ------- Follower Combat Kills 7 Cogmind --------- Core Integrity 0/250 Matter 245/300 Energy 100/100 System Corruption 0% Temperature Cool (0) Movement Core (700) Ox13 Location -10/Subcaves Parts ------- > --- POWER (1) -------- (None) > --- PROPULSION (2) --- (None) > --- UTILITY (2) ------ High-capacity Storage Unit > --- WEAPON (2) ------- (None) > --- INVENTORY (20) --- Flight Unit Sensor Drone Bay (20/20) Heavy Explosive Trap Peak State ------------ > --- POWER ------------ Light Ion Engine > --- PROPULSION ------- Light Treads Light Treads > --- UTILITY ---------- Improved Terrain Scanner Sensor Drone Bay > --- WEAPON ----------- Medium Laser Small Laser > --- INVENTORY -------- Flight Unit Grenade Launcher Heavy Explosive Trap [Rating: 16] Favorites ----------- Power Light Ion Engine Engine Light Ion Engine Power Core Light Nuclear Core Propulsion Light Treads Treads Light Treads Utility Improved Terrain Scanner Device Improved Terrain Scanner Storage High-capacity Storage Unit Weapon Small Laser Energy Gun Small Laser Launcher Grenade Launcher Build | -11 -10 -10 -10 ------- Run | Yrd Mat Min Sub Slots Evolved . | . . . . Power . | . . . . Propulsion . | . . . . Utility . | . . . . Weapon . | . . . . Parts Attached 10 | 5 . 3 2 Power 2 | 1 . . 1 Engine 1 | 1 . . . Core 1 | . . . 1 Reactor . | . . . . Propulsion 2 | 2 . . . Treads 2 | 2 . . . Leg . | . . . . Wheel . | . . . . Hover . | . . . . Flight . | . . . . Utility 3 | . . 3 . Device 2 | . . 2 . Storage 1 | . . 1 . Processor . | . . . . Hackware . | . . . . Protection . | . . . . Artifact . | . . . . Weapon 3 | 2 . . 1 Energy Gun 2 | 2 . . . Energy Cannon . | . . . . Ballistic Gun . | . . . . Ballistic Cannon . | . . . . Launcher 1 | . . . 1 Special Weapon . | . . . . Impact Weapon . | . . . . Slashing Weapon . | . . . . Piercing Weapon . | . . . . Special Melee Weapon . | . . . . Unidentified Prototypes 1 | . . 1 . Parts Lost 7 | . . . 7 Power 1 | . . . 1 Propulsion 2 | . . . 2 Utility 1 | . . . 1 Weapon 3 | . . . 3 Highest Loss Streak 7 | . . . 7 To Critical Strikes . | . . . . Average Backups 2 | . 1 2 2 Power . | . . . . Propulsion . | . . 1 1 Utility . | . . . 1 Weapon . | . . 1 . Tool/Special . | . . . . Unused Backups 1 | . . . 1 Power . | . . . . Propulsion 1 | . . . 1 Utility . | . . . . Weapon . | . . . . Tool/Special . | . . . . Average Slot Usage (%) 83 | . 71 83 90 Engine 13 | . 14 14 9 Treads 27 | . 28 28 25 Device 8 | . . 8 12 Storage 5 | . . 4 14 Energy Gun 27 | . 28 28 24 Peak Build Rating 16 | 5 5 16 12 Average Rating 7 | 3 5 8 9 On Entrance 5 | . 5 5 10 Naked Turns . | . . . . Heaviest Build 49 | 6 6 47 49 Greatest Support 40 | 40 40 40 40 Greatest Overweight (x) 13 | . . 1 13 Average Overweight (x) . | . . . 1 Largest Inventory Capacity 20 | 5 5 20 20 Average Capacity 10 | 5 5 9 20 Most Carried 5 | 4 2 5 5 Average Carried 3 | . 1 3 3 Final Capacity 20 | 5 5 20 20 Final Carried 4 | . 2 4 3 Class Distribution -------------------- 100% | Mutant Dominant Class ---------------- Mutant | -10/Materials Mutant | -10/Mines Mutant | -10/Subcaves Resources | -11 -10 -10 -10 ----------- Run | Yrd Mat Min Sub Matter Collected 280 | 220 30 30 . Remotely . | . . . . Salvage Created 461 | . 258 100 103 Parts 37 | . 16 19 2 Haulers Intercepted . | . . . . Recyclers Shooed 1 | . . 1 . Parts Field Recycled . | . . . . Retrieved Matter . | . . . . Parts Self-Destructed 7 | . . . 7 Prevented . | . . . . Kills | -11 -10 -10 -10 ------- Run | Yrd Mat Min Sub Combat Hostiles Destroyed 8 | . 5 . 3 Guns 2 | . 1 . 1 AOE 6 | . 4 . 2 Classes Destroyed 8 | . 4 2 2 Builder 2 | . . 2 . Tunneler 3 | . . 3 . Recycler 1 | . 1 . . Turret 2 | . . . 2 Watcher 1 | . 1 . . Swarmer 4 | . 3 . 1 Grunt 2 | . 2 . . Subdweller 2 | . . . 2 Best Kill Streak 6 | . 6 1 2 Combat Bots Only 5 | . 5 . 2 Max Kills in Single Turn 5 | . 5 1 1 Gunslinging . | . . . . Exploded 4 | . 4 . 1 Melee . | . . . . Uniques/NPCs Destroyed . | . . . . Combat | -11 -10 -10 -10 -------- Run | Yrd Mat Min Sub Hostile Shots Fired 109 | . 5 . 104 Missed 42 | . 1 . 41 Hits 67 | . 4 . 63 Projectile 67 | . 4 . 63 Critical Strikes 2 | . . . 2 Damage Taken 948 | . 47 . 901 Core 273 | . . . 273 Absorbed by Shields . | . . . . Core Remaining (%) 100 | 100 . . . Volleys Fired 52 | . 7 11 34 Largest 2 | . 2 2 2 Hottest 90 | . 90 90 90 Shots Fired 95 | . 14 22 59 Gun 88 | . 14 22 52 Cannon . | . . . . Launcher 7 | . . . 7 Special . | . . . . Kinetic . | . . . . Thermal 88 | . 14 22 52 Explosive 7 | . . . 7 Electromagnetic . | . . . . Robot Hit Streak 8 | . 2 4 8 Robot Miss Streak 3 | . 2 3 3 Penetration Max . | . . . . Secondary Targets 1 | . . . 1 Max Gunslinging Chain 1 | . . . 1 Shots Hit Robots 54 | . 3 10 41 Core Hits 33 | . 16 5 12 Critical Kills . | . . . . Critical Parts Destroyed . | . . . . Critical Strikes 1 | . . . 1 Burn 1 | . . . 1 Melee Attacks . | . . . . Impact . | . . . . Slashing . | . . . . Piercing . | . . . . Sneak Attacks . | . . . . Combat Hostiles . | . . . . Follow-up Attacks . | . . . . Damage Inflicted 1068 | . 319 119 630 Guns 422 | . 46 119 257 Cannons . | . . . . Explosions 646 | . 273 . 373 Melee . | . . . . Ramming . | . . . . Kinetic . | . . . . Thermal 422 | . 46 119 257 Explosive 373 | . . . 373 Electromagnetic 273 | . 273 . . Impact . | . . . . Slashing . | . . . . Piercing . | . . . . Highest Corruption . | . . . . Average Corruption . | . . . . Corruption Purged . | . . . . Corruption Blocked . | . . . . Overload Shots . | . . . . Overflow Damage . | . . . . Projectiles . | . . . . Explosions . | . . . . Melee . | . . . . Knockbacks . | . . . . Impact . | . . . . Kinetic . | . . . . Secondary . | . . . . Self-Inflicted Damage 47 | . 16 . 31 Shots 3 | . 1 . 2 Rammed . | . . . . Targets Rammed . | . . . . Kicked . | . . . . Crushed . | . . . . Highest Temperature 277 | . 94 30 277 Average Temperature 39 | . 36 18 94 Received Heat Transfer 587 | . . . 587 Siege Activations . | . . . . Martial Activations . | . . . . Shielding Activations . | . . . . Robots Disrupted . | . . . . Combat Hostiles . | . . . . Robots Corrupted . | . . . . Combat Hostiles . | . . . . Parts Fried 1 | . 1 . . Impact Corruptions . | . . . . Robots Melted . | . . . . Combat Hostiles . | . . . . Parts Melted . | . . . . Heat Transferred 1142 | . 112 310 720 Parts Sabotaged . | . . . . Parts Stolen . | . . . . Parts Stripped . | . . . . Power Chain Reactions . | . . . . Alert | -11 -10 -10 -10 ------- Run | Yrd Mat Min Sub Maximum Alert Level . | . . . . Low Security (%) 100 | 100 100 100 . Level 1 . | . . . . Level 2 . | . . . . Level 3 . | . . . . Level 4 . | . . . . Level 5 . | . . . . High Security . | . . . . Max Security . | . . . . Peak Influence 158 | . 158 57 . Initial 57 | . . 57 . Average 5 | . 17 4 . Influence Increases 331 | . 163 25 143 Destroy 0b10 Robot/C 180 | . 100 . 80 Destroy 0b10 Robot/NC 35 | . 10 25 . Destroy Leader 22 | . 22 . . Allied During Kill 3 | . . . 3 Disable Machine 30 | . 30 . . Destroy Structure 1 | . 1 . . Lose Combat Pursuer 60 | . . . 60 Influence Decreases 331 | . 15 173 143 Entered New Map 91 | . . 91 . Time Decay 167 | . 15 82 70 Lost Part 18 | . . . 18 Lost Ally 55 | . . . 55 Squads Dispatched . | . . . . Investigation . | . . . . Extermination . | . . . . Reinforcement . | . . . . Assault . | . . . . Garrison . | . . . . Intercept . | . . . . Searches Triggered . | . . . . Construction Impeded . | . . . . Haulers Reinforced . | . . . . Active Scanning Responses . | . . . . Cargo Convoy Interrupts . | . . . . Stealth | -11 -10 -10 -10 --------- Run | Yrd Mat Min Sub Distress Signals 1 | . 1 . . Communications Jammed . | . . . . Distress Signals . | . . . . Times Spotted 16 | . 6 . 10 Peak Tracking Total 6 | . 6 . 3 Tactical Retreats 2 | . . . 2 Traps | -11 -10 -10 -10 ------- Run | Yrd Mat Min Sub Traps Triggered . | . . . . Indirectly . | . . . . Trap Hack Attempts . | . . . . Triggered . | . . . . Disarmed . | . . . . Reprogrammed . | . . . . Reused . | . . . . Traps Extracted . | . . . . Installed . | . . . . Triggered . | . . . . Most Traps Carried 1 | . . 1 1 Machines | -11 -10 -10 -10 ---------- Run | Yrd Mat Min Sub Machines Disabled 2 | . 2 . . Max in Single Turn 2 | . 2 . . Machines Repaired . | . . . . Machines Dismantled . | . . . . Machines Sabotaged . | . . . . Overloaded Fab Kills . | . . . . Hacking | -11 -10 -10 -10 --------- Run | Yrd Mat Min Sub Machines Accessed 1 | . . 1 . Terminals . | . . . . Fabricators . | . . . . Repair Stations . | . . . . Recycling Units . | . . . . Scanalyzers . | . . . . Garrison Access . | . . . . Total Hacks 1 | . . 1 . Successful 1 | . . 1 . Failed . | . . . . Catastrophic . | . . . . Database Lockouts . | . . . . Manual . | . . . . Terminals . | . . . . Fabricators . | . . . . Repair Stations . | . . . . Recycling Units . | . . . . Scanalyzers . | . . . . Garrison Access . | . . . . Terminal Hacks 1 | . . 1 . Open Door 1 | . . 1 . Fabricator Hacks . | . . . . Repair Station Hacks . | . . . . Recycling Unit Hacks . | . . . . Scanalyzer . | . . . . Garrison Access Hacks . | . . . . Unauthorized Hacks . | . . . . Terminals . | . . . . Fabricators . | . . . . Repair Stations . | . . . . Recycling Units . | . . . . Scanalyzers . | . . . . Garrison Access . | . . . . Data Cores Recovered . | . . . . Used . | . . . . Hacking Detections . | . . . . Full Trace Events . | . . . . Feedback Events . | . . . . Feedback Blocked . | . . . . Robot Schematics Acquired . | . . . . Robots Built . | . . . . Authchips . | . . . . Time . | . . . . Total Robot Build Rating . | . . . . Part Schematics Acquired . | . . . . Parts Built . | . . . . Authchips . | . . . . Time . | . . . . Total Part Build Rating . | . . . . Parts Repaired . | . . . . Time . | . . . . Parts Recycled . | . . . . Recycled Matter . | . . . . Retrieved Matter . | . . . . Retrieved Components . | . . . . Parts Scanalyzed . | . . . . Part Schematics Acquired . | . . . . Parts Damaged . | . . . . Bothacking | -11 -10 -10 -10 ------------ Run | Yrd Mat Min Sub Used RIF Installer . | . . . . Robots Hacked . | . . . . Non-combat . | . . . . Combat . | . . . . Robot Hacks Applied . | . . . . Relay Couplers Released . | . . . . Fabnet Peak Effective % . | . . . . Robots Rewired . | . . . . Allies Hacked . | . . . . Hacks Repelled . | . . . . Allies | -11 -10 -10 -10 -------- Run | Yrd Mat Min Sub Total Allies 3 | . . 3 . Largest Group 3 | . . 3 3 Highest-Rated Group 40 | . . 40 40 Highest-Rated Ally 16 | . . 16 16 Total Orders 1 | . . 1 . RETURN 1 | . . 1 . Ally Attacks 25 | . . . 25 Total Damage 179 | . . . 179 Kills 1 | . . . 1 Allies Corrupted . | . . . . Allies Melted . | . . . . Intel | -11 -10 -10 -10 ------- Run | Yrd Mat Min Sub Active Infowar (turns) 809 | . . 553 256 Terrain 809 | . . 553 256 Robot Analysis Total . | . . . . Derelict Logs Recovered 3 | . . 1 2 Drone Launches 20 | . . 20 . Drone Recoveries 20 | . . 20 . Exploration | -11 -10 -10 -10 ------------- Run | Yrd Mat Min Sub Turns Passed 1525 | 60 183 992 290 Spaces Moved 635 | 40 100 419 76 Core 15 | 12 . . 3 Treads 620 | 28 100 419 73 Legs . | . . . . Wheels . | . . . . Hover . | . . . . Flight . | . . . . Fastest Speed 50 | 50 160 160 240 Average Speed 185 | 127 160 183 259 Slowest Speed 700 | 160 160 240 700 Overloaded Moves . | . . . . Propulsion Burnouts . | . . . . Robots Hopped . | . . . . Potential Cave-ins . | . . . . Cave-ins Triggered . | . . . . Exploration Rate (%) 30 | 4 20 90 9 Regions Visited 3 Branch Regions 2 Pre-discovered Areas 1 | . . . 1 Known Exits Taken . | . . . . Unknown Exits Taken 3 | 1 1 1 . Scrap Searched 2 | . . 2 . Spaces Dug . | . . . . Terrain Destroyed 41 | . . . 41 Melee . | . . . . Projectile . | . . . . AOE 41 | . . . 41 Terrain Rammed . | . . . . Walls Destroyed . | . . . . Machines Disabled . | . . . . Actions | -11 -10 -10 -10 --------- Run | Yrd Mat Min Sub Total 895 | 49 109 621 116 Wait 187 | . 1 184 2 Move 632 | 39 99 418 76 Hop . | . . . . Pick Up 12 | 5 2 4 1 Fast Attach . | . . . . Attach 9 | 5 . 3 1 Detach 1 | . . 1 . Swap 1 | . . . 1 Drop 1 | . . . 1 Fire 52 | . 7 11 34 Melee . | . . . . Ram . | . . . . Kick . | . . . . Crush . | . . . . Escape Stasis . | . . . . Rewire . | . . . . Trap . | . . . . Miscellaneous . | . . . . Route ------- -11/Scrapyard -10/Materials -10/Mines (discovered 2 exits: [*Mat] / [*Sub]) -10/Subcaves (discovered 1 exit: [*Rec]) History --------- Turn | Location | Event 4 | -11/Scrapyard | Discovered new exit (range 15) 61 | -11/Scrapyard | Entered Materials 219 | -10/Materials | Discovered new exit (range 11) 244 | -10/Materials | Entered Mines 309 | -10/Mines | Build established: Mutant 337 | -10/Mines | Discovered new exit (range 12) 354 | -10/Mines | Found the Drone Emporium 364 | -10/Mines | Found Prototype Device 798 | -10/Mines | Found a hidden stash of uninstalled traps 813 | -10/Mines | Identified Sensor Drone Bay 971 | -10/Mines | Learned Materials garrison access intel 1000 | -10/Mines | Assisted by bots powering up and referring to "LRC-V3" 1198 | -10/Mines | Discovered new exit (range 14) 1236 | -10/Mines | Entered Subcaves 1236 | -10/Subcaves | Accompanied by 3 allies 1236 | -10/Subcaves | Learned 2 Materials zone layouts 1237 | -10/Subcaves | Approached by a straggling Scientist 1258 | -10/Subcaves | Learned location of Recycling (-7) 1326 | -10/Subcaves | Discovered new exit (range 16) 1388 | -10/Subcaves | Lost 3 allies 1483 | -10/Subcaves | Ambushed by Subdweller buried in earth 1486 | -10/Subcaves | Ambushed by Subdweller buried in earth 1497 | -10/Subcaves | Core integrity fell below 50% 1519 | -10/Subcaves | Core integrity fell below 20% 1526 | -10/Subcaves | Destroyed by MC-0HU(R) with Subdweller Machine Gun Last Messages --------------- LP-QN5(R): "NOSTUCKSUB!" Lgt. Treads destroyed. MC-0HU(R) affixes Scrap Shield Fragment to Scrap Shield. 3W-GV3(c): "I think it's somewhere north of here" The unstable cave ceiling collapses. Imp. Terrain Scanner destroyed. Subatomizers dissect the Aluminum Leg. Critical hit (Meltdown: +290). LP-QN5(R) destroyed. The unstable cave ceiling collapses. Grenade Launcher destroyed. Lgt. Treads destroyed. The unstable cave ceiling collapses. N1-PST(O) collects matter. Sml. Laser destroyed. N1-PST(O) collects matter. The unstable cave ceiling collapses. N1-PST(O) collects matter. Map ----- +----------------------------------------------------+ | ?????????????????????????????????????????????????? | | ?????????????????????????????????????????????????? | | ?????????????????????????????????????????????????? | | ?????????????????????????????????????????????????? | | ?????????????????????????????????????????? ??#??? | | ?????????????????????????????????????????? #???? | | ?????????????????? ????????????#?????????? ##?? | | ??????????#????????????????? ??#?????????? | | ??????????????#???????????? ###????##????? | | ????????????????#??????? ?? # ?????? ###?? | | ?????????????????????????? ???????? ##? | | ?????????????????????????? ????????? ## | | ???????????????#???????### #?????????# #? | | ???????????#????????#?## #???#??????# ??? | | ???????????#?#???????## #??????##### #???? | | ????????????########## #???#???## #???? | | ????????????#""" "#?# #??#??#?## #????? | | ????????????#" ### [#??#???#?# ###???? | | ???????? ???#" # ########## # ## #???# | | ???????????##"" % [= ## #### %# ##?## | | ???????????#< % % * = ## ### | | ???????????##"" " ! [ | | ????????????#" ##### ## # | | ????????????#" ## ### ##### # | | ????????????#""" " # ### ###?##### ## | | ????????????##### # @ * ## #####??####? | | ????????????????# %% ##??????? | | ?????????#?#?# O c #??????? | | ???????????# R! #?????? | | ??????????# " ### #????? | | ???????????"" # # # #?# ??? | | ???????????"" # ## ##??? ?? | | ????????????""# ## # ## #???? #? | | ??????????????##??#### ##?# ###????? #?? | | ??????????????"??????# #?? ##???????? ??? | | ????????????????????# #??#???#??????????# | | ??????????????#???## ##?#???????????????? | | ???????????????????#" ## #??????????????????? | | ???????????????#???#" ## ??????????????????? | | ???????????????????? ## ## ??????????????????? | | ???????????????????? ? ?? ##?????????????????? | | ???????????????????? ? ?? ??????????????????? | | ?????????????????????? ?? ?? ???????????????????? | | ?????????????????????????????????????????????????? | | ?????????????????????????????????????????????????? | | ?????????????????????????????????????????????????? | | ?????????????????????????????????????????????????? | | ?????????????????????????????????????????????????? | | ?????????????????????????????????????????????????? | | ?????????????????????????????????????????????????? | +----------------------------------------------------+ Best States ------------- Heat Dissipation 25 Energy Generation 14 Energy Capacity 160 Matter Stores 300 Matter Capacity 300 Sight Range 16 Terrain Scan Range 16 Terrain Scan Density 10 Evasion (%) 50 Recoil Reduction 2 Item Schematics ----------------- None Robot Schematics ------------------ None Fabricated ------------ Nothing Repaired ---------- Nothing Alien Tech Used ----------------- None Achievements -------------- None Challenges ------------ None Game ------ Seed RecoilPersonalCannon Manual? 0 Play Time 00:11:11 Cumulative 130.0 hours Start 2025.09.08 @ 20:26:24 End 2025.09.09 @ 20:26:38 Sessions 1 Manual Loads 0 Difficulty Rogue Special Mode None Game No. 453 Rogue 453 Adventurer 0 Explorer 0 Win Type - Total 0 Types 0/0/0/0/0/0/0/0/0/0 Lore% 51 Gallery% 48 Achievement% 35 Wizard Run 0 Options --------- Layout 2 ASCII 0 Keyboard 0 Movement Mouse Keybinds 0 Fullscreen 2 Font 24/Smallcaps Map View 50x44 Zoom Use 14% Tactical HUD 0 Map Filters NONE Filters NONE Steam 1 RUN: ce190ead-130c-4dd5-922f-89b911eb86d1